[Event "USA-ch Junior Girls 2019"]
[Site "Saint Louis"]
[Date "2019.07.20"]
[Round "9.4"]
[White "Zilajeva, Veronika"]
[Black "Li, Rachael"]
[Result "1-0"]
[ECO "A58"]
[WhiteElo "1855"]
[BlackElo "1736"]
[Annotator "NA RC"]
[PlyCount "261"]
[EventDate "2019.07.09"]
[EventType "tourn"]
[EventCountry "USA"]
[SourceTitle "playchess.com"]
[Source "ChessBase"]
[SourceQuality "1"]
[TimeControl "40/5400+30:1800+30"]

{[%evp 72,260,340,366,32767,302,317,329,32767,32767,32767,32767,32767,32767,32767,355,335,372,681,833,778,1357,931,4076,4137,934,4151,4133,4151,3952,4133,4144,4153,4141,4145,4137,4137,4153,4153,4120,4135,602,4141,4133,4141,4137,1863,4133,4137,4072,4129,4141,4137,4153,32767,32767,32767,32767,32767,32767,32767,4133,4145,4137,4149,4152,6578,4149,4152,8860,12843,29970,29973,8031,4153,9448,29945,29953,29961,29965,29946,29965,29974,29971,29945,29972,29963,29973,29973,29973,29974,29975,29975,29977,29977,29978,29978,32767,32767,29967,32767,29964,29970,32767,32767,32767,32767,29981,32767,29981,29981,29982,29982,29983,29983,29982,29984,29985,29985,4125,29985,4137,29985,4125,29982,29981,29981,32767,32767,32767,32767,29984,29984,29985,29984,29984,29981,29985,29985,29986,29987,29987,29987,29988,29988,4141,29988,29989,29988,4145,29988,29989,29989,4145,29990,29991,29991,0,29990,0,4141,32767,32767,0,29989,4141,29990,29990,32767,32767,32767,32767,32767,29991,29991,29992,29992,29993,29993,29994,29994,29995,29995,29996,29996,29997,29997,29998,29998,29999,29999]} 1. d4 {[%emt 0:00:00]} Nf6 {[%emt 0:00:00]} 2. c4 {[%emt 0:00:00]} c5 {[%emt 0:00:00]} 3. d5 {[%emt 0:00:00]} b5 {[%emt 0:00:00]} 4. cxb5 {[%emt 0:01:26]} a6 {[%emt 0:00:00]} 5. bxa6 {[%emt 0:00:16]} g6 {[%emt 0:00:00]} 6. Nc3 {[%emt 0:00:26]} Bxa6 {[%emt 0:00:06]} 7. g3 {[%emt 0:01:07]} Bg7 {[%emt 0:00:11]} 8. Bg2 {[%emt 0:00:30]} d6 {[%emt 0:00:10]} 9. h4 {[%emt 0:06:45] A58: Benko/Volga Gambit: Lines with 5 bxa6} (9. Nf3 Nbd7 10. Rb1 O-O 11. O-O Qa5 12. Bd2 Rfb8 13. a4 Qd8 14. b3 Bb7 15. Nh4 Nb6 16. e4 Ba6 17. Re1 Nbd7 18. f4 Bd3 19. Rc1 c4 20. e5 {0-1 (41) Rodshtein,M (2699)-Kislinsky,A (2513) Katowice 2017}) 9... h5 {[%emt 0:01:04]} 10. Nh3 {[%emt 0:01:18]} O-O {[%emt 0:01:26]} 11. O-O {[%emt 0:00:47]} Nbd7 {[%emt 0:00:26]} 12. f4 $146 {[%emt 0:09:52]} ({Predecessor:} 12. Rb1 Qa5 13. Qc2 Ng4 14. Bd2 Rfb8 15. b3 Bc8 16. Nf4 Nde5 {½-½ (39) Alber,H (2340)-Scheider,J (2275) Osterburg 2012}) 12... Ng4 {[%emt 0:03:03]} 13. Kh1 {[%emt 0:01:56]} Bd4 {[%emt 0:06:51]} 14. Qc2 {[%emt 0:03:18]} Kg7 {[%emt 0:06:28]} 15. Nd1 {[%emt 0:09:54]} Rb8 {[%emt 0:09:06]} 16. Ng5 {[%emt 0:01:34]} Bf6 17. f5 {[%emt 0:14:07]} Nde5 {[%emt 0:08:09]} 18. Be4 {[%emt 0:01:34]} Qd7 {[%emt 0:01:40]} 19. Nh3 {[%emt 0:01:34]} e6 20. fxe6 {[%emt 0:01:40]} fxe6 {[%emt 0:08:15]} 21. Nf4 {[%emt 0:00:36]} exd5 {[%emt 0:23:53]} 22. Bxg6 {[%emt 0:02:21]} Bxh4 {[%emt 0:01:08]} 23. Nxh5+ {[%emt 0:04:26]} Kh8 {[%emt 0:01:01]} 24. Bf4 {[%emt 0:02:26]} Nxg6 {[%emt 0:08:17]} 25. Qxg6 {[%emt 0:03:27]} Bxe2 {[%emt 0:01:52]} 26. Nf2 {[%emt 0:04:29]} Rg8 {[%emt 0:02:30]} 27. Qxd6 {[%emt 0:01:40]} Qxd6 {[%emt 0:00:13]} 28. Bxd6 {[%emt 0:00:08]} Bxf1 {[%emt 0:01:19]} 29. Nxg4 {[%emt 0:00:50]} Bd3 {[%emt 0:05:54]} 30. Be5+ {[%emt 0:02:32]} Kh7 {[%emt 0:00:09]} 31. gxh4 {[%emt 0:04:38]} Rxg4 {[%emt 0:06:17]} 32. Nf6+ {[%emt 0:00:31]} Kg6 {[%emt 0:00:06]} 33. Nxg4 {[%emt 0:00:34]} Rb4 {[%emt 0:00:20]} 34. Nf2 {[%emt 0:01:28]} Be2 {[%emt 0:02:38]} 35. Kg2 {[%emt 0:01:41]} Rxh4 {[%emt 0:00:12]} 36. a4 {[%emt 0:01:12]} Rh5 {[%emt 0:01:36]} 37. Bg3 {[%emt 0:00:36]} d4 {[%emt 0:00:17]} 38. a5 {[%emt 0:01:34]} Ba6 {[%emt 0:00:24]} 39. Re1 {[%emt 0:01:24]} Kf7 {[%emt 0:01:13]} 40. Re5 {[%emt 0:00:00]} Rxe5 {[%emt 0:00:00]} 41. Bxe5 {[%emt 0:01:50]} Ke6 {[%emt 0:00:10]} 42. Bg7 {[%emt 0:01:19]} Kd5 {[%emt 0:00:11]} 43. Kf3 {[%emt 0:01:23]} c4 {[%emt 0:01:53]} 44. Ne4 {[%emt 0:03:12]} c3 {[%emt 0:01:55]} 45. bxc3 {[%emt 0:01:18]} dxc3 {[%emt 0:00:07]} 46. Bxc3 {[%emt 0:01:55]} Bb7 {[%emt 0:00:48]} 47. Ke3 {[%emt 0:01:01]} Ba6 {[%emt 0:00:22]} 48. Be1 {[%emt 0:00:22]} Bb7 {[%emt 0:01:13]} 49. Nf6+ {[%emt 0:00:54]} Kc5 {[%emt 0:00:18]} 50. Kd3 {[%emt 0:00:49]} Bc6 {[%emt 0:00:27]} 51. Kc3 {[%emt 0:01:30]} Bb5 {[%emt 0:00:49]} 52. Ne4+ {[%emt 0:00:22]} Kc6 {[%emt 0:00:07]} 53. Kd4 {[%emt 0:00:43]} Bf1 {[%emt 0:00:27]} 54. Nc3 {[%emt 0:02:01]} Ba6 {[%emt 0:00:22]} 55. Nd5 {[%emt 0:00:23]} Bf1 {[%emt 0:00:29]} 56. Nb4+ {[%emt 0:00:44]} Kb5 {[%emt 0:00:13]} 57. Nc2 {[%emt 0:03:45]} Kc6 {[%emt 0:00:14]} 58. Ne3 {[%emt 0:00:50]} Be2 {[%emt 0:00:47]} 59. Nf5 {[%emt 0:00:22]} Bf1 {[%emt 0:00:57]} 60. Ne7+ {[%emt 0:01:33]} Kb5 {[%emt 0:01:28]} 61. Kd5 {[%emt 0:00:20]} Bg2+ {[%emt 0:00:44]} 62. Kd6 {[%emt 0:00:10]} Be4 {[%emt 0:00:23]} 63. Kc7 {[%emt 0:00:40]} Ka6 {[%emt 0:00:04]} 64. Ng8 {[%emt 0:00:43]} Bd3 {[%emt 0:01:09]} 65. Kb8 {[%emt 0:00:39]} Kb5 {[%emt 0:01:08]} 66. Nf6 {[%emt 0:01:01]} Kc6 {[%emt 0:00:40]} 67. Ka7 {[%emt 0:00:45]} Kd6 {[%emt 0:00:12]} 68. Kb6 {[%emt 0:00:15]} Ke7 {[%emt 0:00:41]} 69. Nd5+ {[%emt 0:00:26]} Kd7 {[%emt 0:00:11]} 70. Nc7 {[%emt 0:00:13]} Bc4 {[%emt 0:00:23]} 71. Bg3 {[%emt 0:01:41]} Kc8 {[%emt 0:00:07]} 72. Ne8 {[%emt 0:03:10]} (72. a6 $142 Bf1 73. a7) 72... Bf1 {[%emt 0:01:42]} 73. Ng7 {[%emt 0:05:18]} (73. Nd6+ $142 Kd7 74. a6 Bg2 75. a7 Ba8 76. Nb5 Bf3 77. Nc7 Bh1 78. Kc5) 73... Kd7 {[%emt 0:02:51]} 74. Nf5 {[%emt 0:00:15]} Bd3 {[%emt 0:00:38]} 75. Nd4 {[%emt 0:00:14]} Kc8 {[%emt 0:00:17]} 76. Nc6 {[%emt 0:00:10]} Bf1 {[%emt 0:00:31]} 77. Na7+ {[%emt 0:00:19]} Kd7 {[%emt 0:00:11]} 78. Nb5 {[%emt 0:01:03]} Kc8 {[%emt 0:00:21]} 79. a6 {[%emt 0:00:30]} Kd7 {[%emt 0:00:17]} 80. a7 {[%emt 0:03:38]} Bg2 {[%emt 0:00:11]} 81. Nc7 {[%emt 0:00:48]} Kc8 {[%emt 0:00:09]} 82. a8=Q+ {[%emt 0:00:34]} Bxa8 {[%emt 0:00:10]} 83. Nxa8 {[%emt 0:00:01]} Kd7 {[%emt 0:00:08]} (83... Kd8 84. Nc7 Ke7 85. Nd5+ Kf7 86. Ne3) 84. Kc5 {[%emt 0:00:21]} Ke6 {[%emt 0:00:07]} 85. Nc7+ {[%emt 0:00:16]} Kf5 {[%emt 0:00:12]} 86. Kd4 {[%emt 0:00:34]} Kg4 {[%emt 0:00:08]} 87. Bd6 {[%emt 0:00:16]} Kf5 {[%emt 0:00:13]} 88. Kd5 {[%emt 0:00:17]} Kg4 {[%emt 0:00:17]} 89. Ke4 {[%emt 0:00:15]} Kg5 {[%emt 0:00:18]} 90. Ne8 {[%emt 0:00:43]} Kg4 {[%emt 0:00:09]} 91. Nf6+ {[%emt 0:00:45]} Kg5 {[%emt 0:00:08]} 92. Ke5 {[%emt 0:00:16]} Kh4 {[%emt 0:00:09]} 93. Kf4 {[%emt 0:00:32]} Kh3 {[%emt 0:00:04]} 94. Kf3 {[%emt 0:00:52]} Kh4 {[%emt 0:00:08]} 95. Bf4 {[%emt 0:00:24]} (95. Ne4 $142 Kh3 96. Ng5+ Kh4 97. Kf4 Kh5 98. Kf5 Kh4 99. Be5 Kh5 100. Bg3) 95... Kh3 {[%emt 0:00:04]} 96. Ne4 {[%emt 0:01:05]} Kh4 {[%emt 0:00:22]} 97. Ng3 {[%emt 0:00:07]} (97. Bg3+ $142 Kh5 98. Kf4 Kg6 99. Bh4 Kh5 100. Bf6 Kg6 101. Kg4 Kf7 102. Kf5) 97... Kh3 {[%emt 0:00:04]} 98. Bd2 {[%emt 0:01:19]} Kh4 {[%emt 0:00:13]} 99. Be3 {[%emt 0:00:06]} Kh3 {[%emt 0:00:05]} 100. Bg1 {[%emt 0:00:13]} Kh4 {[%emt 0:00:04]} 101. Ne4 {[%emt 0:02:34]} Kh5 {[%emt 0:00:06]} 102. Kf4 {[%emt 0:00:25]} Kg6 {[%emt 0:00:07]} 103. Ke5 {[%emt 0:01:27]} Kh5 {[%emt 0:00:13]} 104. Nf2 {[%emt 0:03:39]} Kg5 {[%emt 0:00:16]} 105. Bh2 {[%emt 0:00:13]} Kh5 {[%emt 0:01:10]} 106. Kf6 {[%emt 0:00:49]} Kh6 {[%emt 0:00:21]} 107. Bd6 {[%emt 0:00:47]} Kh5 {[%emt 0:00:23]} 108. Bg3 {[%emt 0:00:04]} (108. Kf5 $142 Kh4 109. Be5 Kh5 110. Bf6 Kh6 111. Ne4 Kh5 112. Ng3+ Kh6 113. Be5) 108... Kh6 {[%emt 0:00:06]} 109. Nd3 {[%emt 0:00:18]} Kh5 {[%emt 0:00:11]} 110. Ne5 {[%emt 0:00:04]} Kh6 {[%emt 0:00:06]} 111. Ng6 {[%emt 0:01:36]} Kh5 {[%emt 0:00:16]} 112. Kf5 {[%emt 0:00:11]} Kh6 {[%emt 0:00:05]} 113. Be5 {[%emt 0:00:39]} Kh5 {[%emt 0:00:18]} 114. Bg3 $2 {[%emt 0:01:12]} (114. Bf6 {mates} Kh6 115. Nf8 Kh5 116. Ne6 Kh6 117. Bg5+ Kh7 118. Kf6 Kg8 119. Kg6 Kh8 120. Kf7 Kh7 121. Nf8+ Kh8 122. Bf6#) 114... Kh6 {[%emt 0:00:04]} 115. Kf6 $2 {[%emt 0:00:08]} (115. Bd6 {mates} Kh5 116. Be5 Kh6 117. Nf4 Kh7 118. Kf6 Kh8 119. Ne6 Kh7 120. Bf4) 115... Kh5 {[%emt 0:00:20]} 116. Ne5 {[%emt 0:00:07]} Kh6 {[%emt 0:00:03]} 117. Nd3 $2 {[%emt 0:03:36]} (117. Bf2 {mates} Kh5 118. Kf5 Kh6 119. Bh4 Kg7 120. Be7 Kh6 121. Kg4 Kh7 122. Bf8) 117... Kh5 {[%emt 0:00:11]} 118. Kf5 {[%emt 0:00:10]} Kh6 {[%emt 0:00:19]} 119. Be5 {[%emt 0:00:16]} Kh5 {[%emt 0:00:23]} 120. Bf6 {[%emt 0:00:11]} Kh6 {[%emt 0:00:06]} 121. Nf4 {[%emt 0:00:23]} Kh7 {[%emt 0:00:09]} 122. Bg5 {[%emt 0:01:51]} Kg7 {[%emt 0:02:27]} 123. Ke6 {[%emt 0:00:30]} Kf8 {[%emt 0:00:23]} 124. Nh5 {[%emt 0:01:00]} Ke8 {[%emt 0:01:31]} 125. Ng7+ {[%emt 0:00:07]} Kf8 {[%emt 0:00:04]} 126. Kf6 {[%emt 0:00:07]} Kg8 {[%emt 0:00:02]} 127. Ne6 {[%emt 0:00:16]} Kh7 {[%emt 0:00:23]} 128. Kf7 {[%emt 0:00:12]} Kh8 {[%emt 0:00:03]} 129. Bf4 {[%emt 0:00:13]} Kh7 {[%emt 0:00:04]} 130. Nf8+ {[%emt 0:00:08]} Kh8 {[%emt 0:00:03]} 131. Be5# {[%emt 0:00:05]} 1-0

[Event "USA-ch Junior Girls 2019"]
[Site "Saint Louis"]
[Date "2019.07.20"]
[Round "9.5"]
[White "Bykovtsev, Agata"]
[Black "Yan, Ruiyang"]
[Result "1-0"]
[ECO "B20"]
[WhiteElo "2012"]
[BlackElo "1851"]
[Annotator "NA"]
[PlyCount "93"]
[EventDate "2019.07.09"]
[EventType "tourn"]
[EventCountry "USA"]
[SourceTitle "playchess.com"]
[Source "ChessBase"]
[SourceQuality "1"]
[TimeControl "40/5400+30:1800+30"]

1. e4 {[%emt 0:00:00]} c5 {[%emt 0:00:00]} 2. b3 {[%emt 0:00:00]} d6 {[%emt 0:00:19]} 3. Bb2 {[%emt 0:00:01]} e5 {[%emt 0:02:09]} 4. Bc4 {[%emt 0:02:24]} Nf6 {[%emt 0:00:10]} (4... Nc6 5. Ne2 f5 6. d3 Nf6 7. O-O f4 8. Nd2 g5 9. b4 Nxb4 10. c3 Nc6 11. d4 Na5 {1-0 (43) Morozevich,A (2683)-Savchenko,B (2607) Moscow 2016}) 5. Nc3 {[%emt 0:00:08]} Be6 {[%emt 0:01:32]} 6. d3 {[%emt 0:01:54] B20: Sicilian: Unusual White 2nd moves} Be7 {[%emt 0:02:48]} 7. Nge2 {[%emt 0:00:40]} a6 {[%emt 0:04:20]} 8. a4 {[%emt 0:00:09]} O-O {[%emt 0:03:24]} 9. O-O {[%emt 0:01:03]} Nc6 {[%emt 0:14:30]} 10. f4 {[%emt 0:09:17]} Ng4 {[%emt 0:15:53]} 11. Bc1 {[%emt 0:06:07]} Bxc4 {[%emt 0:02:25]} 12. bxc4 $146 {[%emt 0:01:42]} ({Predecessor:} 12. dxc4) 12... exf4 {[%emt 0:03:06]} 13. Nxf4 {[%emt 0:08:14]} Bf6 {[%emt 0:05:52]} 14. Qxg4 {[%emt 0:03:48]} Bxc3 {[%emt 0:00:10]} 15. Rb1 {[%emt 0:00:39]} Rb8 {[%emt 0:10:09]} 16. Nh5 {[%emt 0:11:18]} g6 {[%emt 0:08:05]} 17. Bb2 {[%emt 0:08:43]} Bxb2 {[%emt 0:01:48]} 18. Rxb2 {[%emt 0:00:06]} Ne5 {[%emt 0:00:05]} 19. Qg3 {[%emt 0:00:38]} f6 {[%emt 0:00:10]} 20. Nf4 {[%emt 0:01:02]} Qd7 {[%emt 0:03:40]} 21. Nd5 {[%emt 0:06:15]} Kg7 {[%emt 0:03:11]} 22. Nb6 {[%emt 0:03:09]} Qe6 {[%emt 0:00:41]} 23. c3 {[%emt 0:01:24]} f5 {[%emt 0:01:52]} 24. d4 {[%emt 0:07:04]} f4 {[%emt 0:04:36]} 25. Qh3 {[%emt 0:02:46]} Qxh3 {[%emt 0:02:55]} 26. gxh3 {[%emt 0:00:03]} Nc6 {[%emt 0:01:13]} 27. Nd7 {[%emt 0:01:17]} cxd4 {[%emt 0:00:51]} 28. Nxb8 {[%emt 0:01:30]} Rxb8 {[%emt 0:00:27]} 29. cxd4 {[%emt 0:00:30]} g5 {[%emt 0:00:34]} 30. Rfb1 {[%emt 0:06:44]} Nxd4 {[%emt 0:03:27]} 31. Rxb7+ {[%emt 0:02:15]} Rxb7 {[%emt 0:00:07]} 32. Rxb7+ {[%emt 0:00:02]} Kf6 {[%emt 0:00:11]} 33. Rb6 {[%emt 0:00:25]} Ke5 {[%emt 0:00:19]} 34. Rxa6 {[%emt 0:01:07]} Nf3+ {[%emt 0:00:15]} 35. Kf2 {[%emt 0:00:44]} Nd2 {[%emt 0:00:05]} 36. Ra5+ {[%emt 0:08:02]} Ke6 {[%emt 0:03:23]} 37. Rd5 {[%emt 0:01:17]} Nxe4+ {[%emt 0:00:17]} 38. Kf3 {[%emt 0:00:15]} Nc3 {[%emt 0:00:08]} 39. Ra5 {[%emt 0:00:11]} h6 {[%emt 0:00:27] [#]} 40. h4 $1 {[%emt 0:00:00]} Kf6 {[%emt 0:00:00]} 41. Ra8 {[%emt 0:03:10]} Nb1 {[%emt 0:00:57]} 42. a5 {[%emt 0:01:51]} Nd2+ {[%emt 0:00:13]} 43. Ke2 {[%emt 0:00:41]} Nxc4 {[%emt 0:00:07]} 44. a6 {[%emt 0:00:24]} Nb6 {[%emt 0:00:55]} 45. Rb8 {[%emt 0:00:10]} Nd7 {[%emt 0:00:19]} 46. a7 {[%emt 0:00:06]} Nxb8 {[%emt 0:00:42]} 47. axb8=Q {[%emt 0:00:10]} 1-0